Cogmind - Beta 16.1 @@@ ROGUE MODE // 2026.02.16 @ 02:15:09 Player: Drago Result: Destroyed by S-43 Plague with Heavy Machine Gun Performance ------------- Evolutions (7) 3500 Regions Visited (17) 3400 Robots Destroyed (405) 2025 Value Destroyed (17617) 17617 Prototype IDs (31) 620 Alien Tech Used (0) 0 Bonus (11755) 11755 TOTAL SCORE: 38917 Bonus ------- High Alert Combat Kills 4391 Follower Combat Kills 2011 Entered Garrisons 1400 Used RIF Installer 4000 Friendly Fire -47 Cogmind --------- Core Integrity 0/1300 Matter 242/300 Energy 99/100 System Corruption 19% Temperature Cool (0) Movement Core (50) Location -3/Garrison Parts ------- > --- POWER (2) -------- (None) > --- PROPULSION (6) --- (None) > --- UTILITY (9) ------ (None) > --- WEAPON (4) ------- (None) > --- INVENTORY (5) ---- Relay Coupler [NC] (37) Peak State ------------ > --- POWER ------------ Fission Core Neutrino Core > --- PROPULSION ------- Improved Treads Improved Heavy Treads Improved Heavy Treads High-density Centrium Wheel > --- UTILITY ---------- Advanced Cooling System Huge Storage Unit Advanced Weapon Cycler Improved Medium Armor Plating Advanced Force Field Relay Coupler [NC] Relay Coupler [Grunt] Relay Coupler [Specialist] Relay Coupler [Hunter] > --- WEAPON ----------- KE Penetrator KE Penetrator KE Penetrator Advanced Remote Datajack > --- INVENTORY -------- Improved Treads Improved Treads Improved Treads Advanced Cooling System High-capacity Matter Pod High-capacity Matter Pod Advanced ECM Suite Layered Heavy Armor Plating Advanced Force Field Relay Coupler [NC] Relay Coupler [Grunt] Relay Coupler [Grunt] Relay Coupler [Demolisher] Relay Coupler [Specialist] Relay Coupler [Behemoth] Matter Neutralizer Gauss Rifle Coil Gun KE Penetrator Railgun Micro-nuke Launcher Advanced Remote Datajack [Rating: 127] Favorites ----------- Power Neutrino Core Engine Ion Engine Power Core Neutrino Core Reactor Particle Reactor Propulsion Improved Treads Treads Improved Treads Leg Carbon-fiber Leg Wheel Wheel Utility Huge Storage Unit Device Improved Cooling System Storage Huge Storage Unit Processor Core Analyzer Hackware Relay Coupler [NC] Protection Improved Light Armor Plating Weapon Gauss Rifle Energy Gun Precision Beam Rifle Energy Cannon Beam Cannon Ballistic Gun Gauss Rifle Ballistic Cannon Mini Assault Cannon Launcher Long-range Missile Launcher Special Weapon Improved Remote Datajack Impact Weapon Hammer Slashing Weapon Great Axe Build | -11 -10 -10 -9 -8 -8 -8 -8 -7 -7 -6 -6 -5 -5 -4 -4 -3 -3 ------- Run | Yrd Mat Min Mat Mat Gar Mat Gar Fac Gar Fac Gar Fac Gar Fac Gar Res Gar Slots Evolved 14 | . . . 2 2 . . . 2 . 2 . 2 . 2 . 2 . Power 1 | . . . . . . . . . . . . . . 1 . . . Propulsion 4 | . . . 1 . . . . 1 . . . 1 . . . 1 . Utility 7 | . . . . 2 . . . 1 . 1 . 1 . 1 . 1 . Weapon 2 | . . . 1 . . . . . . 1 . . . . . . . Parts Attached 261 | 7 6 1 34 17 10 10 5 26 12 10 19 25 46 3 9 21 . Power 19 | 1 1 . 2 2 1 1 . 1 1 . 1 1 4 . 1 2 . Engine 10 | 1 1 . 2 1 1 1 . . 1 . . 1 1 . . . . Core 6 | . . . . 1 . . . 1 . . 1 . 2 . 1 . . Reactor 3 | . . . . . . . . . . . . . 1 . . 2 . Propulsion 72 | 2 1 . 16 3 . 2 1 10 1 4 7 2 19 . 1 3 . Treads 52 | 1 . . 16 3 . 2 1 7 . 4 5 1 9 . 1 2 . Leg 16 | . . . . . . . . 3 1 . 1 1 10 . . . . Wheel 4 | 1 1 . . . . . . . . . 1 . . . . 1 . Hover . | . . . . . . . . . . . . . . . . . . Flight . | . . . . . . . . . . . . . . . . . . Utility 85 | 2 2 . 5 6 3 4 1 7 6 2 7 13 13 3 5 6 . Device 32 | 1 . . . 3 2 2 . 2 2 1 2 8 4 1 1 3 . Storage 7 | 1 2 . 1 . . 1 . . . . . 1 . . . 1 . Processor 3 | . . . . 1 . . . 1 . . . 1 . . . . . Hackware 21 | . . . . . 1 . 1 1 3 1 2 2 5 2 2 1 . Protection 22 | . . . 4 2 . 1 . 3 1 . 3 1 4 . 2 1 . Artifact . | . . . . . . . . . . . . . . . . . . Weapon 85 | 2 2 1 11 6 6 3 3 8 4 4 4 9 10 . 2 10 . Energy Gun 10 | 1 . . . 2 . 2 1 . 2 . . . 1 . . 1 . Energy Cannon 4 | . 1 . 1 . . . . . . . . 1 . . . 1 . Ballistic Gun 49 | 1 . 1 7 2 4 1 1 5 2 3 3 4 8 . 1 6 . Ballistic Cannon 2 | . . . . . . . . 2 . . . . . . . . . Launcher 10 | . 1 . 2 1 . . . 1 . . 1 3 . . . 1 . Special Weapon 7 | . . . . . 1 . 1 . . 1 . 1 1 . 1 1 . Impact Weapon 1 | . . . 1 . . . . . . . . . . . . . . Slashing Weapon 2 | . . . . 1 1 . . . . . . . . . . . . Piercing Weapon . | . . . . . . . . . . . . . . . . . . Special Melee Weapon . | . . . . . . . . . . . . . . . . . . Unidentified Prototypes 9 | . . . . 1 . 1 . 2 . . 1 3 . . . 1 . Parts Lost 106 | . 3 . 6 4 4 . 7 19 . 1 10 3 24 . 1 24 . Power 15 | . 1 . 2 1 1 . 1 1 . . 1 . 3 . . 4 . Propulsion 32 | . 1 . . . 1 . 2 8 . 1 3 . 9 . . 7 . Utility 25 | . . . 2 2 1 . . 5 . . 2 2 4 . 1 6 . Weapon 34 | . 1 . 2 1 1 . 4 5 . . 4 1 8 . . 7 . Highest Loss Streak 18 | . 2 . 3 2 1 . 2 9 . 1 4 1 9 . 1 18 . To Critical Strikes 1 | . . . . . . . . . . . . . . . . 1 . Average Backups 21 | 4 12 17 22 24 23 24 22 23 21 23 24 23 17 20 23 17 1 Power 1 | . 1 1 1 1 1 1 1 1 1 2 1 1 . . . . . Propulsion 4 | 3 5 6 6 6 6 5 4 3 . . 1 1 2 4 3 2 . Utility 9 | . 4 5 7 7 7 8 9 13 11 11 13 15 10 11 13 10 1 Weapon 5 | . 2 5 6 7 6 7 4 3 8 9 7 6 4 4 4 4 . Tool/Special . | . . . . . . . . . . . . . . . . . . Unused Backups 61 | . 9 . 9 9 1 2 1 5 2 1 3 4 3 . 1 10 1 Power 8 | . 1 . 2 3 . 1 . 1 . . . . . . . . . Propulsion 10 | . 5 . 4 . . . . . . 1 . . . . . . . Utility 26 | . 2 . 2 2 . . 1 2 2 . 3 1 2 . . 8 1 Weapon 15 | . 1 . 1 3 . 1 . 2 . . . 3 1 . 1 2 . Tool/Special 2 | . . . . 1 1 . . . . . . . . . . . . Average Slot Usage (%) 93 | . 93 100 98 97 97 99 99 96 96 99 98 84 80 77 85 66 . Engine 5 | . 13 14 10 7 9 9 9 1 6 6 . 3 1 . . . . Core 2 | . . . . 1 . . . 5 . . 5 1 3 5 9 6 . Treads 21 | . 14 14 32 27 25 26 27 28 6 15 23 13 13 15 15 11 . Leg 2 | . . . . . . . . 1 23 10 . . 6 . . . . Device 8 | . 14 14 5 14 9 9 9 9 1 6 5 9 7 9 11 8 . Storage 7 | . 14 14 11 9 9 9 9 7 7 6 6 5 4 5 5 3 . Processor 3 | . . . . 1 9 9 9 4 7 6 6 . . . . . . Hackware 5 | . . . . . . . . 5 12 13 13 16 9 14 18 17 . Protection 6 | . . . 4 8 9 9 9 6 7 6 5 4 9 5 4 2 . Energy Gun 3 | . 6 . . 6 . . 13 10 1 6 . . 2 . . . . Ballistic Gun 18 | . 7 13 31 18 21 25 12 7 9 15 24 16 16 21 16 11 . Peak Build Rating 127 | 7 8 9 20 37 40 40 43 51 58 71 77 97 98 103 107 127 . Average Rating 48 | 4 7 8 15 30 37 38 39 45 48 67 62 89 82 90 101 88 . On Entrance 45 | . 7 7 9 19 36 38 37 43 34 57 70 76 85 97 90 107 . Avg Prop Armor Cover (%) 9 | 12 12 12 . . . . . 15 7 16 2 3 6 . . . . Naked Turns 42 | . . . . . . . . . . . . . 3 . . 4 35 Heaviest Build 197 | 15 89 91 102 109 114 114 106 114 110 114 115 197 142 122 146 154 . Greatest Support 196 | 10 10 10 66 69 63 63 66 89 63 120 150 173 173 173 173 196 3 Greatest Overweight (x) 34 | 1 8 9 1 1 2 2 1 3 3 6 2 1 34 . . 4 . Average Overweight (x) 1 | . 3 9 1 1 1 1 1 1 1 . . . . . . . . Largest Inventory Capacity 25 | 8 25 25 25 25 25 25 25 25 25 25 25 25 25 25 25 25 5 Average Capacity 24 | 7 18 25 25 25 25 25 25 25 25 25 25 25 24 25 25 20 5 Most Carried 25 | 7 15 20 25 25 25 25 25 25 25 25 25 25 25 24 25 25 1 Average Carried 22 | 5 12 17 22 24 23 24 22 23 21 23 24 24 18 21 24 18 1 Final Capacity 25 | 8 25 25 25 25 25 25 25 25 25 25 25 25 25 25 25 5 5 Final Carried 25 | 6 15 20 22 25 24 25 25 19 25 25 25 24 25 21 24 1 1 Class Distribution -------------------- 20% | Botlord-Tank 15% | Tank 11% | Mutant 8% | Botlord-Gunner 7% | Bothacker-Gunner 6% | Scavenger-Gunner 6% | Gunner 5% | Bothacker-Tank 5% | Scavenger-Tank 5% | Bothacker-Mutant Dominant Class ---------------- Mutant | -10/Materials Mutant | -10/Mines Tank | -9/Materials Tank | -8/Materials Scientist-Tank | -8/Garrison Tank | -8/Materials Gunner | -8/Garrison Bothacker-Gunner | -7/Factory Bothacker-Gunner | -7/Garrison Botlord-Gunner | -6/Factory Botlord-Gunner | -6/Garrison Botlord-Tank | -5/Factory Botlord-Tank | -5/Garrison Botlord-Tank | -4/Factory Botlord-Tank | -4/Garrison Botlord-Tank | -3/Research Mutant | -3/Garrison Resources | -11 -10 -10 -9 -8 -8 -8 -8 -7 -7 -6 -6 -5 -5 -4 -4 -3 -3 ----------- Run | Yrd Mat Min Mat Mat Gar Mat Gar Fac Gar Fac Gar Fac Gar Fac Gar Res Gar Matter Collected 14177 | 291 701 88 1277 742 1067 963 545 1360 613 541 884 1366 2173 . 690 876 . Remotely . | . . . . . . . . . . . . . . . . . . Salvage Created 17296 | 88 697 141 1719 1148 1463 1347 798 2652 310 617 1310 1228 1802 . 758 1218 . Parts 910 | 3 54 9 115 75 77 80 31 128 15 25 69 84 68 . 41 36 . Haulers Intercepted 18 | . 2 . 4 2 . 4 . 4 . . . 1 . . . 1 . Recyclers Shooed 13 | . . . . 1 . . . 1 . 2 . 4 . . . 5 . Parts Field Recycled . | . . . . . . . . . . . . . . . . . . Retrieved Matter . | . . . . . . . . . . . . . . . . . . Parts Self-Destructed . | . . . . . . . . . . . . . . . . . . Prevented . | . . . . . . . . . . . . . . . . . . Parts Restored . | . . . . . . . . . . . . . . . . . . Kills | -11 -10 -10 -9 -8 -8 -8 -8 -7 -7 -6 -6 -5 -5 -4 -4 -3 -3 ------- Run | Yrd Mat Min Mat Mat Gar Mat Gar Fac Gar Fac Gar Fac Gar Fac Gar Res Gar Combat Hostiles Destroyed 321 | . 15 7 38 25 30 30 18 48 7 6 24 21 22 . 17 13 . Guns 251 | . 9 . 23 18 30 28 18 29 5 6 23 17 21 . 17 7 . Cannons 23 | . 1 4 1 . . . . 13 2 . . . . . . 2 . AOE 46 | . 4 3 14 7 . 2 . 6 . . 1 4 1 . . 4 . Classes Destroyed 20 | 2 6 . 5 1 1 2 . . . . 1 . 2 . . . . Worker 16 | . 2 . 1 1 . 4 . 5 . 1 . 2 . . . . . Builder 9 | . 2 . . . . . . 4 . . . 2 . . . 1 . Tunneler 5 | 1 1 . . . . 1 . 1 . . . 1 . . . . . Hauler 18 | . 2 . 4 2 . 4 . 4 . . . 1 . . . 1 . Recycler 14 | 1 1 . 3 . . . . 3 . 2 . 1 . . . 3 . Mechanic 8 | . . . 1 . . . . 4 . . . 1 . . . 2 . Operator 2 | . . . 2 . . . . . . . . . . . . . . Watcher 11 | . 1 . 3 3 1 1 . 1 . . . . . . . 1 . Swarmer 84 | . 6 5 14 8 2 10 3 6 . . 11 8 . . 11 . . Cutter 3 | . . . . . . . . . . . 3 . . . . . . Grunt 126 | . 9 2 13 10 17 11 11 23 2 3 6 3 13 . 2 1 . Brawler 6 | . . . 1 . 2 1 . 1 . . . . 1 . . . . Duelist 11 | . . . 1 . 1 1 . 5 . . . . 3 . . . . Protector 2 | . . . . . . 1 . 1 . . . . . . . . . Sentry 41 | . . . 9 5 4 4 1 7 . 1 1 2 1 . 3 3 . Demolisher 1 | . . . . . . . . . . . . . 1 . . . . Specialist 8 | . . . . 2 . . . . 2 . . . 3 . . 1 . Hunter 10 | . . . . . . 2 1 1 . 1 2 . . . . 3 . Programmer 28 | . . . . . 4 . 2 4 3 1 1 8 . . . 5 . Behemoth 2 | . . . . . . . . . . . . . 1 . 1 . . Best Kill Streak 14 | 2 6 3 9 4 6 4 5 14 3 4 7 5 4 . 3 11 . Combat Bots Only 8 | . 3 3 8 4 6 4 5 6 3 2 7 4 4 . 3 7 . Max Kills in Single Turn 4 | 1 3 3 3 3 2 2 2 4 1 1 2 3 2 . 2 2 . Gunslinging 1 | . 1 . . . 1 . 1 1 . . 1 1 1 . 1 . . Exploded 3 | . 2 3 3 3 . 1 . 3 . . 1 2 1 . . 2 . Melee . | . . . . . . . . . . . . . . . . . . Uniques/NPCs Destroyed . | . . . . . . . . . . . . . . . . . . Combat | -11 -10 -10 -9 -8 -8 -8 -8 -7 -7 -6 -6 -5 -5 -4 -4 -3 -3 -------- Run | Yrd Mat Min Mat Mat Gar Mat Gar Fac Gar Fac Gar Fac Gar Fac Gar Res Gar Hostile Shots Fired 2428 | . 48 18 143 126 137 110 86 517 60 54 171 182 350 . 83 325 18 Missed 711 | . 14 4 31 41 32 41 16 181 22 14 59 55 85 . 19 88 9 Hits 1717 | . 34 14 112 85 105 69 70 336 38 40 112 127 265 . 64 237 9 Melee 31 | . . . 3 . . . . 8 . . 8 . 12 . . . . Projectile 1686 | . 34 14 109 85 105 69 70 328 38 40 104 127 253 . 64 237 9 AOE 9 | . . . . . . . . 1 . . 2 1 5 . . . . Critical Strikes 65 | . . . 1 . 8 2 1 11 2 1 6 6 16 . 1 10 . Part Disruptions 5 | . . . . . . . . . 1 . . . 3 . . 1 . Damage Taken 26400 | . 436 155 1872 1021 1134 817 1092 4352 492 679 1633 2405 4058 . 856 5218 180 Core 3703 | . 64 52 299 136 87 137 96 409 36 81 103 225 634 . 38 1126 180 Absorbed by Shields 3801 | . . . . 253 433 54 9 267 . . 291 212 1266 . 698 307 11 Reduced by Siege Mode 134 | . . . . . . . . . . . . . 72 . 22 40 . Ignored by Resistances 42 | . . . . . 29 13 . . . . . . . . . . . Regen/Repaired (Parts) 1131 | . . . . . . 472 . 659 . . . . . . . . . Core Remaining (%) 52 | 100 . 53 25 . . . 17 . 36 . 78 . 14 . 96 . . Volleys Fired 972 | 7 49 12 93 62 81 64 53 123 29 29 51 71 121 . 46 81 . Largest 4 | 2 2 2 3 3 3 3 3 3 3 4 4 4 4 . 4 4 . Hottest 204 | 70 80 80 108 107 107 111 152 152 202 178 178 174 163 . 117 204 . Shots Fired 2476 | 14 91 23 251 176 223 178 149 315 57 77 170 173 305 . 132 142 . Gun 2221 | 14 75 11 235 173 218 174 149 258 41 69 164 136 273 . 124 107 . Cannon 106 | . 11 11 3 . . . . 39 9 . . 12 6 . . 15 . Launcher 49 | . 5 1 13 3 . 4 . 8 . . 2 3 4 . . 6 . Special 100 | . . . . . 5 . . 10 7 8 4 22 22 . 8 14 . Kinetic 1930 | 7 42 11 235 139 217 169 95 175 35 48 159 136 236 . 124 102 . Thermal 397 | 7 44 11 3 34 1 5 54 122 15 21 5 12 43 . . 20 . Explosive 49 | . 5 1 13 3 . 4 . 8 . . 2 3 4 . . 6 . Electromagnetic . | . . . . . . . . . . . . . . . . . . Robot Hit Streak 49 | 5 14 7 15 25 15 12 18 29 23 10 21 49 35 . 21 15 . Robot Miss Streak 5 | 3 3 5 3 3 3 4 4 3 3 2 2 2 3 . 2 5 . Penetration Max 1 | . . . . . 1 1 1 1 . 1 1 1 1 . 1 1 . Secondary Targets 41 | . 2 . 2 2 7 2 3 4 . . 7 2 5 . 4 1 . Max Gunslinging Chain 1 | . 1 . 1 1 1 1 1 1 . . 1 1 1 . 1 1 . Shots Hit Robots 1741 | 10 56 11 157 115 168 106 111 224 40 52 127 131 240 . 94 99 . Core Hits 817 | 3 34 9 86 57 71 65 36 148 15 18 55 46 87 . 29 58 . Critical Kills 22 | . 2 . 1 . . 4 . 1 . 2 . 3 3 . 2 4 . Critical Parts Destroyed 19 | . . . 3 1 . 1 . 2 . . 2 1 5 . . 4 . Critical Strikes 76 | 1 5 . 4 5 . 5 3 15 1 2 3 4 13 . 3 12 . Burn 26 | 1 3 . . 4 . . 3 11 . . . . 3 . . 1 . Meltdown 2 | . 1 . . . . . . . . . . . . . . 1 . Destroy 45 | . 1 . 4 1 . 5 . 3 . 2 2 4 10 . 3 10 . Blast 2 | . . . . . . . . 1 1 . . . . . . . . Sever 1 | . . . . . . . . . . . 1 . . . . . . Melee Attacks 58 | . . . 5 4 18 5 2 . 6 2 16 . . . . . . Impact 5 | . . . 5 . . . . . . . . . . . . . . Slashing 53 | . . . . 4 18 5 2 . 6 2 16 . . . . . . Piercing . | . . . . . . . . . . . . . . . . . . Sneak Attacks 1 | . . . . . . 1 . . . . . . . . . . . Combat Hostiles . | . . . . . . . . . . . . . . . . . . Follow-up Attacks . | . . . . . . . . . . . . . . . . . . Damage Inflicted 41363 | 123 1056 282 3267 2268 2883 2158 2045 6041 865 1069 3390 3506 5473 . 1844 5093 . Guns 30905 | 123 689 51 2113 1825 2883 1782 2045 3671 706 1069 2134 2818 5159 . 1844 1993 . Cannons 2204 | . 106 142 61 . . . . 812 159 . . 300 127 . . 497 . Explosions 6850 | . 261 89 1087 443 . 240 . 1527 . . 49 388 169 . . 2597 . Melee 1334 | . . . . . . 127 . . . . 1207 . . . . . . Ramming 70 | . . . 6 . . 9 . 31 . . . . 18 . . 6 . Kinetic 26836 | 46 388 51 2113 1269 2883 1716 1289 2789 480 601 2049 2818 4643 . 1844 1857 . Thermal 6273 | 77 407 142 61 556 . 66 756 1694 385 468 85 300 643 . . 633 . Explosive 6850 | . 261 89 1087 443 . 240 . 1527 . . 49 388 169 . . 2597 . Electromagnetic . | . . . . . . . . . . . . . . . . . . Impact . | . . . . . . . . . . . . . . . . . . Slashing 1334 | . . . . . . 127 . . . . 1207 . . . . . . Piercing . | . . . . . . . . . . . . . . . . . . Highest Corruption 19 | . 4 4 . . 2 2 3 5 6 . . 11 12 . . 19 19 Average Corruption 5 | . 3 4 . . 1 2 2 4 5 . . 3 11 . . 11 19 Corruption Purged 10 | . . . . . . . . . . . . 10 . . . . . Corruption Blocked . | . . . . . . . . . . . . . . . . . . Effects 325 | . 10 6 . . 18 20 19 60 33 . . 23 116 . . 17 3 Message Errors 84 | . 3 1 . . 4 8 5 16 11 . . 4 27 . . 4 1 Matter Fused 72 | . 3 1 . . 2 2 4 12 10 . . 8 27 . . 2 1 Heat Flow Errors 25 | . . 1 . . . . 1 6 . . . 1 14 . . 2 . Energy Discharges 42 | . 1 . . . 4 4 3 10 5 . . 4 10 . . 1 . Parts Rejected 10 | . 1 . . . . 2 . 1 . . . . 3 . . 3 . Parts Fused 2 | . . . . . . . . 1 . . . . 1 . . . . Data Loss (minor) 38 | . . . . . 5 2 2 3 5 . . 3 16 . . 2 . Data Loss (major) 16 | . 2 1 . . 1 . 1 5 2 . . . 4 . . . . Misfires 20 | . . 1 . . 1 1 3 4 . . . 2 8 . . . . Alerts 5 | . . . . . 1 1 . . . . . 1 2 . . . . Misdirections 5 | . . . . . . . . . . . . . 2 . . 2 1 Weapon Failures 6 | . . 1 . . . . . 2 . . . . 2 . . 1 . Overload Shots . | . . . . . . . . . . . . . . . . . . Overflow Damage 315 | . 12 5 9 33 . . . 14 . . . 40 . . . 202 . Projectiles 45 | . . . . . . . . . . . . 2 . . . 43 . Explosions 270 | . 12 5 9 33 . . . 14 . . . 38 . . . 159 . Melee . | . . . . . . . . . . . . . . . . . . Knockbacks 2 | . . . . . . . . 2 . . . . . . . . . Impact . | . . . . . . . . . . . . . . . . . . Kinetic 2 | . . . . . . . . 2 . . . . . . . . . Secondary . | . . . . . . . . . . . . . . . . . . Self-Inflicted Damage 694 | . 20 1 174 . . . . 52 . . . . 30 . . 417 . Shots 15 | . 1 1 4 . . . . 2 . . . . 1 . . 6 . Rammed 7 | . . . . . . 1 . 2 . . . . 3 . . 1 . Targets Rammed 9 | . . . 1 . . 1 . 3 . . . . 3 . . 1 . Kicked . | . . . . . . . . . . . . . . . . . . Crushed 2 | . . . 1 . . . . 1 . . . . . . . . . Highest Temperature 379 | 54 201 310 153 135 176 370 170 332 94 42 12 59 245 . 202 379 . Average Temperature 48 | 26 46 97 36 21 56 42 16 43 48 18 6 26 51 . 46 132 . Received Heat Transfer 6824 | . 144 45 540 363 562 265 459 1634 102 187 338 86 1435 . 272 359 33 Effects 1 | . . . . . . . . . . . . . . . . 1 . Shutdowns 1 | . . . . . . . . . . . . . . . . 1 . Siege Activations 4 | . . . . . . . . . . . . . 1 . 1 2 . Total Turns 105 | . . . . . . . . . . . . . 59 . 21 25 . Longest Duration 59 | . . . . . . . . . . . . . 59 . 21 18 . Martial Activations . | . . . . . . . . . . . . . . . . . . Shielding Activations . | . . . . . . . . . . . . . . . . . . Robots Disrupted . | . . . . . . . . . . . . . . . . . . Combat Hostiles . | . . . . . . . . . . . . . . . . . . Robots Corrupted . | . . . . . . . . . . . . . . . . . . Combat Hostiles . | . . . . . . . . . . . . . . . . . . Parts Fried . | . . . . . . . . . . . . . . . . . . Impact Corruptions . | . . . . . . . . . . . . . . . . . . Robots Melted 2 | . 1 . . . . . . . . . . . . . . 1 . Combat Hostiles 1 | . 1 . . . . . . . . . . . . . . . . Parts Melted 33 | . 4 . . 5 . 1 1 10 2 . . . 1 . . 9 . Heat Transferred 13602 | 296 1332 296 111 1480 . 148 1598 4440 546 592 111 450 1371 . . 831 . Parts Sabotaged . | . . . . . . . . . . . . . . . . . . Parts Stolen . | . . . . . . . . . . . . . . . . . . Parts Stripped . | . . . . . . . . . . . . . . . . . . Power Chain Reactions . | . . . . . . . . . . . . . . . . . . Alert | -11 -10 -10 -9 -8 -8 -8 -8 -7 -7 -6 -6 -5 -5 -4 -4 -3 -3 ------- Run | Yrd Mat Min Mat Mat Gar Mat Gar Fac Gar Fac Gar Fac Gar Fac Gar Res Gar Maximum Alert Level 5 | . . . 2 1 4 4 4 4 4 2 3 2 5 4 5 3 2 Low Security (%) 26 | 100 100 100 54 63 12 . . . . 69 7 24 . . . . . Level 1 12 | . . . 10 36 24 . . . . . 30 52 . . . . . Level 2 21 | . . . 35 . 18 70 . 24 . 30 43 22 23 . . 22 100 Level 3 19 | . . . . . 27 26 73 45 34 . 19 . 16 . 16 77 . Level 4 15 | . . . . . 16 2 26 30 65 . . . 34 100 69 . . Level 5 3 | . . . . . . . . . . . . . 25 . 13 . . High Security . | . . . . . . . . . . . . . . . . . . Max Security . | . . . . . . . . . . . . . . . . . . Peak Influence 2479 | 10 191 87 557 292 1327 1114 1402 1359 1323 694 869 638 2479 1301 1636 920 498 Initial 1301 | . . . 8 231 68 646 720 735 947 694 42 455 434 1301 882 920 498 Average 615 | . 61 46 211 166 622 704 1010 934 1101 230 512 294 1240 1284 1331 770 498 Influence Increases 13988 | 10 515 192 1230 772 1309 1108 752 1690 436 245 967 843 2505 . 984 430 . Destroy 0b10 Robot/C 7380 | . 300 140 760 500 680 620 380 980 220 140 580 420 920 . 480 260 . Destroy 0b10 Robot/NC 470 | 10 45 . 70 30 5 55 . 120 . 15 20 35 25 . . 40 . Destroy Leader 1156 | . 76 30 194 120 20 160 50 210 20 40 40 82 30 . 20 64 . Allied During Kill 546 | . . . . . 49 10 5 2 16 9 18 . 255 . 174 8 . Successful Hack 248 | . 38 . 22 32 . 18 12 9 . 17 14 63 . . 23 . . Select Force Hacks 30 | . . . 30 . . . . . . . . . . . . . . Disable Machine 435 | . 15 . 45 15 . 90 15 165 . . 15 45 30 . . . . Anti-Garrison Action 2150 | . . . . . 400 . 200 . 150 . 250 . 900 . 250 . . Destroy Structure 763 | . 26 7 94 30 95 35 15 54 30 9 30 108 150 . 22 58 . Partial Spotted 15 | . . . . . . . . 15 . . . . . . . . . Lose Combat Pursuer 795 | . 15 15 15 45 60 120 75 135 . 15 . 90 195 . 15 . . Influence Decreases 13490 | 10 515 170 704 1214 88 1327 458 1738 467 1507 159 1092 646 1218 609 1402 166 Entered New Map 6199 | . . . 14 317 38 681 388 667 407 629 19 414 186 1178 379 716 166 Time Decay 4388 | 10 352 170 480 697 . 586 . 691 . 418 . 618 . 40 . 326 . Lost Part 1060 | . 30 . 60 40 40 . 70 190 . 10 100 30 240 . 10 240 . Lost Ally 810 | . . . . 10 10 60 . 40 60 . 40 30 220 . 220 120 . Purge Threat 1033 | . 133 . 150 150 . . . 150 . 450 . . . . . . . Squads Dispatched 42 | . 3 . 5 2 . 7 . 13 . 2 . 4 . . . 6 . Investigation 3 | . 1 . 2 . . . . . . . . . . . . . . Extermination 11 | . . . . . . . . 4 . 2 . 4 . . . 1 . Reinforcement 11 | . 2 . 1 2 . 3 . 2 . . . . . . . 1 . Assault 11 | . . . 2 . . 1 . 7 . . . . . . . 1 . Garrison 6 | . . . . . . 3 . . . . . . . . . 3 . Intercept . | . . . . . . . . . . . . . . . . . . Searches Triggered . | . . . . . . . . . . . . . . . . . . Construction Impeded . | . . . . . . . . . . . . . . . . . . Haulers Reinforced 3 | . . . . . . . . 2 . . . . . . . 1 . Active Scanning Responses . | . . . . . . . . . . . . . . . . . . Cargo Convoy Interrupts 2 | . . . . . . . . . . . . 1 . . . 1 . Alert ID Control Effect 11 | . . . . . . . . . . . . . . . 9 2 . Stealth | -11 -10 -10 -9 -8 -8 -8 -8 -7 -7 -6 -6 -5 -5 -4 -4 -3 -3 --------- Run | Yrd Mat Min Mat Mat Gar Mat Gar Fac Gar Fac Gar Fac Gar Fac Gar Res Gar Distress Signals 15 | . 1 . 2 2 4 3 . 3 . . . . . . . . . Communications Jammed 159 | . . . . . . . . 38 . . . 12 17 . . 92 . Distress Signals 159 | . . . . . . . . 38 . . . 12 17 . . 92 . Times Spotted 576 | . 27 8 53 43 42 51 21 85 13 9 36 45 67 . 32 34 10 Peak Tracking Total 11 | . 3 3 5 7 5 6 4 8 3 3 7 11 11 . 7 8 10 Tactical Retreats 40 | . 1 1 1 2 3 7 4 6 . 1 . 6 7 . 1 . . Traps | -11 -10 -10 -9 -8 -8 -8 -8 -7 -7 -6 -6 -5 -5 -4 -4 -3 -3 ------- Run | Yrd Mat Min Mat Mat Gar Mat Gar Fac Gar Fac Gar Fac Gar Fac Gar Res Gar Traps Triggered 47 | . 5 . . . 4 . 7 4 4 1 10 1 8 . 1 2 . Indirectly . | . . . . . . . . . . . . . . . . . . Trap Hack Attempts . | . . . . . . . . . . . . . . . . . . Triggered . | . . . . . . . . . . . . . . . . . . Disarmed . | . . . . . . . . . . . . . . . . . . Reprogrammed . | . . . . . . . . . . . . . . . . . . Reused . | . . . . . . . . . . . . . . . . . . Traps Extracted . | . . . . . . . . . . . . . . . . . . Installed . | . . . . . . . . . . . . . . . . . . Triggered . | . . . . . . . . . . . . . . . . . . Machines | -11 -10 -10 -9 -8 -8 -8 -8 -7 -7 -6 -6 -5 -5 -4 -4 -3 -3 ---------- Run | Yrd Mat Min Mat Mat Gar Mat Gar Fac Gar Fac Gar Fac Gar Fac Gar Res Gar Machines Disabled 47 | . 2 . 3 1 1 6 3 11 2 . 5 3 6 . 4 . . Max in Single Turn 3 | . 1 . 1 1 1 2 1 3 1 . 1 2 1 . 1 . . Garrison Relay 15 | . . . . . 1 . 2 . 1 . 3 . 4 . 4 . . Machines Repaired . | . . . . . . . . . . . . . . . . . . Machines Dismantled 1 | . . . . . . . 1 . . . . . . . . . . Machines Sabotaged . | . . . . . . . . . . . . . . . . . . Overloaded Fab Kills . | . . . . . . . . . . . . . . . . . . Hacking | -11 -10 -10 -9 -8 -8 -8 -8 -7 -7 -6 -6 -5 -5 -4 -4 -3 -3 --------- Run | Yrd Mat Min Mat Mat Gar Mat Gar Fac Gar Fac Gar Fac Gar Fac Gar Res Gar Machines Accessed 78 | . 6 . 10 10 3 7 5 9 2 6 1 10 1 1 4 3 . Terminals 57 | . 6 . 8 7 3 4 5 5 2 3 1 6 1 . 4 2 . Fabricators 4 | . . . . . . . . 1 . 1 . 2 . . . . . Repair Stations 3 | . . . . . . 2 . 1 . . . . . . . . . Recycling Units 1 | . . . 1 . . . . . . . . . . . . . . Scanalyzers 6 | . . . 1 2 . . . 1 . 1 . 1 . . . . . Garrison Access 7 | . . . . 1 . 1 . 1 . 1 . 1 . 1 . 1 . Total Hacks 197 | . 18 . 36 27 4 21 7 17 3 22 1 26 1 2 7 5 . Successful 107 | . 13 . 16 18 1 13 2 11 1 14 1 12 . 2 2 1 . Failed 88 | . 5 . 20 8 3 8 5 5 2 8 . 14 1 . 5 4 . Catastrophic 18 | . . . 2 1 2 2 2 1 1 1 . 2 1 . 1 2 . Database Lockouts 2 | . . . . 1 . . . 1 . . . . . . . . . Manual 94 | . 15 . 25 15 . 9 . 4 . 11 . 12 . . . 3 . Terminals 146 | . 18 . 29 20 4 15 7 10 3 12 1 15 1 . 7 4 . Fabricators 9 | . . . . . . . . 1 . 2 . 6 . . . . . Repair Stations 7 | . . . . . . 4 . 3 . . . . . . . . . Recycling Units 4 | . . . 4 . . . . . . . . . . . . . . Scanalyzers 19 | . . . 3 5 . . . 2 . 5 . 4 . . . . . Garrison Access 12 | . . . . 2 . 2 . 1 . 3 . 1 . 2 . 1 . Terminal Hacks 37 | . 6 . 6 4 1 4 2 3 1 3 1 4 . . 2 . . Part Schematic 1 | . . . . . . . . 1 . . . . . . . . . Robot Schematic 1 | . . . 1 . . . . . . . . . . . . . . Robot Analysis 5 | . 2 . 2 . . . . . . . . 1 . . . . . Prototype ID Bank 3 | . 1 . . 1 . 1 . . . . . . . . . . . Open Door 1 | . . . . . . . . . . . . . . . 1 . . Open DSF 1 | . . . . . . . . 1 . . . . . . . . . Branch Access Points 1 | . . . . . . . . . . . . 1 . . . . . Emergency Access Points 3 | . . . . . 1 . 1 . . . 1 . . . . . . Alert Level 1 | . . . 1 . . . . . . . . . . . . . . Unreport Threat 7 | . 1 . 1 1 . . . 1 . 3 . . . . . . . Locate Traps 3 | . 1 . . . . 1 . . . . . 1 . . . . . Hauler Manifests 4 | . . . 1 2 . 1 . . . . . . . . . . . Registered Components 1 | . . . . . . 1 . . . . . . . . . . . Zone Layout 2 | . 1 . . . . . . . . . . 1 . . . . . Garrison Registry 2 | . . . . . . . 1 . 1 . . . . . . . . Security Stations 1 | . . . . . . . . . . . . . . . 1 . . Fabricator Hacks 3 | . . . . . . . . 1 . 1 . 1 . . . . . Network Status 3 | . . . . . . . . 1 . 1 . 1 . . . . . Repair Station Hacks 6 | . . . . . . 4 . 2 . . . . . . . . . Scan Component 3 | . . . . . . 2 . 1 . . . . . . . . . Repair 3 | . . . . . . 2 . 1 . . . . . . . . . Recycling Unit Hacks 1 | . . . 1 . . . . . . . . . . . . . . Retrieve Components 1 | . . . 1 . . . . . . . . . . . . . . Scanalyzer 13 | . . . . 4 . . . 1 . 5 . 3 . . . . . Insert Component 1 | . . . . . . . . . . 1 . . . . . . . Retrieve Study 12 | . . . . 4 . . . 1 . 4 . 3 . . . . . Garrison Access Hacks 8 | . . . . 1 . 1 . 1 . 1 . 1 . 2 . 1 . Unlock Access 7 | . . . . 1 . 1 . 1 . 1 . 1 . 1 . 1 . Coupler Status 1 | . . . . . . . . . . . . . . 1 . . . Unauthorized Hacks 39 | . 7 . 9 9 . 4 . 3 . 4 . 3 . . . . . Terminals 38 | . 7 . 8 9 . 4 . 3 . 4 . 3 . . . . . Assimilate 2 | . . . . 2 . . . . . . . . . . . . . Botnet 11 | . 2 . 2 1 . 1 . 1 . 2 . 2 . . . . . Operators 6 | . . . 1 1 . 1 . 1 . 1 . 1 . . . . . Skim 19 | . 5 . 5 5 . 2 . 1 . 1 . . . . . . . Fabricators . | . . . . . . . . . . . . . . . . . . Repair Stations . | . . . . . . . . . . . . . . . . . . Recycling Units 1 | . . . 1 . . . . . . . . . . . . . . Tunnel 1 | . . . 1 . . . . . . . . . . . . . . Scanalyzers . | . . . . . . . . . . . . . . . . . . Garrison Access . | . . . . . . . . . . . . . . . . . . Data Cores Recovered 1 | . . . 1 . . . . . . . . . . . . . . Used . | . . . . . . . . . . . . . . . . . . Hacking Detections 63 | . 5 . 9 6 2 7 4 5 2 5 1 9 1 1 4 2 . Full Trace Events 4 | . . . 1 1 1 . . . . . . . . . 1 . . Feedback Events . | . . . . . . . . . . . . . . . . . . Feedback Blocked . | . . . . . . . . . . . . . . . . . . Robot Schematics Acquired 1 | . . . 1 . . . . . . . . . . . . . . Robots Built . | . . . . . . . . . . . . . . . . . . Authchips . | . . . . . . . . . . . . . . . . . . Time . | . . . . . . . . . . . . . . . . . . Total Robot Build Rating . | . . . . . . . . . . . . . . . . . . Part Schematics Acquired 1 | . . . . . . . . 1 . . . . . . . . . Parts Built . | . . . . . . . . . . . . . . . . . . Authchips . | . . . . . . . . . . . . . . . . . . Time . | . . . . . . . . . . . . . . . . . . Total Part Build Rating . | . . . . . . . . . . . . . . . . . . Part Studies Acquired 9 | . . . . 4 . . . . . 2 . 3 . . . . . Parts Repaired 3 | . . . . . . 2 . 1 . . . . . . . . . Time 114 | . . . . . . 76 . 38 . . . . . . . . . Parts Recycled . | . . . . . . . . . . . . . . . . . . Recycled Matter . | . . . . . . . . . . . . . . . . . . Retrieved Matter . | . . . . . . . . . . . . . . . . . . Retrieved Components 3 | . . . 3 . . . . . . . . . . . . . . Parts Scanalyzed . | . . . . . . . . . . . . . . . . . . Part Schematics Acquired . | . . . . . . . . . . . . . . . . . . Parts Damaged . | . . . . . . . . . . . . . . . . . . Bothacking | -11 -10 -10 -9 -8 -8 -8 -8 -7 -7 -6 -6 -5 -5 -4 -4 -3 -3 ------------ Run | Yrd Mat Min Mat Mat Gar Mat Gar Fac Gar Fac Gar Fac Gar Fac Gar Res Gar Used RIF Installer 8 | . . . . . 1 . 1 . 2 . 2 . 1 . 1 . . Coupler Efficiency 1 | . . . . . . . . . . . 1 . . . . . . Command Fork 1 | . . . . . . . . . . . 1 . . . . . . Signal Jammer 1 | . . . . . . . 1 . . . . . . . . . . Watcher Feeds 1 | . . . . . . . . . 1 . . . . . . . . Alert ID Control 1 | . . . . . . . . . . . . . 1 . . . . Structural Interface 1 | . . . . . . . . . 1 . . . . . . . . Autoassimilate 1 | . . . . . . . . . . . . . . . 1 . . Robots Hacked 54 | . . . . . . . . 5 4 4 3 13 12 . 5 8 . Non-combat 19 | . . . . . . . . 5 . 3 . 8 . . . 3 . Combat 35 | . . . . . . . . . 4 1 3 5 12 . 5 5 . Autoassimilated 2 | . . . . . . . . . . . . . . . 1 1 . Robot Hacks Applied 62 | . . . . . . . . 5 5 5 4 17 14 . 5 7 . generate_echo 2 | . . . . . . . . . . . . 2 . . . . . find_chute 2 | . . . . . . . . 1 . . . 1 . . . . . drop_inventory 8 | . . . . . . . . . . 3 . 3 . . . 2 . locate_stockpiles 2 | . . . . . . . . . . 1 . 1 . . . . . find_recycling 2 | . . . . . . . . 1 . . . 1 . . . . . map_route 2 | . . . . . . . . 1 . . . . . . . 1 . find_garrison 1 | . . . . . . . . . . . . 1 . . . . . tweak_propulsion 1 | . . . . . . . . . . . . . . . 1 . . scatter_targeting 3 | . . . . . . . . . 1 . . 1 . . . 1 . overload_power 2 | . . . . . . . . . . . 1 1 . . . . . amplify_resonance 7 | . . . . . . . . . 1 . . 2 4 . . . . disable_weapons 1 | . . . . . . . . . . . . . 1 . . . . reboot_system 1 | . . . . . . . . . . . . . . . 1 . . go_dormant 1 | . . . . . . . . . . . 1 . . . . . . overwrite_iff 10 | . . . . . . . . . . . 1 . 7 . . 2 . formatsys_low 3 | . . . . . . . . 2 . . . 1 . . . . . formatsys_high 14 | . . . . . . . . . 3 1 1 3 2 . 3 1 . Relay Couplers Released 59 | . . . . . 7 . 9 . 4 . 11 . 14 . 14 . . Machine Destruction 55 | . . . . . 3 . 9 . 4 . 11 . 14 . 14 . . Programmers 4 | . . . . . 4 . . . . . . . . . . . . Attached 19 | . . . . . . . . 1 3 1 2 2 5 2 2 1 . Fabnet Peak Effective % . | . . . . . . . . . . . . . . . . . . Robots Rewired 16 | . . . . . 3 . . . . . . . 10 . 3 . . Allies Hacked 6 | . . . . . . . . . 1 . . 5 . . . . . Hacks Repelled . | . . . . . . . . . . . . . . . . . . Allies | -11 -10 -10 -9 -8 -8 -8 -8 -7 -7 -6 -6 -5 -5 -4 -4 -3 -3 -------- Run | Yrd Mat Min Mat Mat Gar Mat Gar Fac Gar Fac Gar Fac Gar Fac Gar Res Gar Total Allies 52 | . . . . 2 3 . 1 2 3 1 2 4 22 . 7 5 . Largest Group 10 | . . . . 2 3 3 1 1 2 1 3 3 10 6 8 3 . Highest-Rated Group 447 | . . . . 20 48 48 39 39 64 29 90 92 447 230 310 143 . Highest-Rated Ally 95 | . . . . 10 16 16 39 39 32 29 32 49 95 80 80 49 . Total Orders 4 | . . . . 2 . . . 2 . . . . . . . . . STAY 1 | . . . . 1 . . . . . . . . . . . . . FOLLOW 1 | . . . . 1 . . . . . . . . . . . . . AID 2 | . . . . . . . . 2 . . . . . . . . . Ally Attacks 324 | . . . . . 28 23 7 14 11 1 32 7 139 . 47 15 . Total Damage 8557 | . . . . . 309 265 114 239 340 19 454 206 4759 . 1366 486 . Kills 63 | . . . . . 4 2 1 3 4 1 5 . 25 . 16 2 . Allies Corrupted 3 | . . . . . . . . . . . . 2 . . . 1 . Allies Melted . | . . . . . . . . . . . . . . . . . . Intel | -11 -10 -10 -9 -8 -8 -8 -8 -7 -7 -6 -6 -5 -5 -4 -4 -3 -3 ------- Run | Yrd Mat Min Mat Mat Gar Mat Gar Fac Gar Fac Gar Fac Gar Fac Gar Res Gar Active Infowar (turns) 4203 | 17 1325 353 1769 736 . . . . . . . . 3 . . . . Seismic 4200 | 17 1325 353 1769 736 . . . . . . . . . . . . . ECM 3 | . . . . . . . . . . . . . 3 . . . . Robot Analysis Total 5 | . 2 . 2 . . . . . . . . 1 . . . . . Derelict Logs Recovered 1 | . . 1 . . . . . . . . . . . . . . . Drone Launches . | . . . . . . . . . . . . . . . . . . Drone Recoveries . | . . . . . . . . . . . . . . . . . . Exploration | -11 -10 -10 -9 -8 -8 -8 -8 -7 -7 -6 -6 -5 -5 -4 -4 -3 -3 ------------- Run | Yrd Mat Min Mat Mat Gar Mat Gar Fac Gar Fac Gar Fac Gar Fac Gar Res Gar Turns Passed 27159 | 82 1325 353 3619 2922 2167 1836 1366 2812 1305 1052 1478 2063 2829 82 1102 731 35 Spaces Moved 11695 | 53 692 140 1347 1210 858 738 538 1105 458 530 576 1118 1312 43 581 327 69 Core 151 | 15 . . . . . . . . . . . . 16 . . 51 69 Treads 9734 | . . . 1347 1210 858 738 538 1105 18 325 576 1118 1001 43 581 276 . Legs 940 | . . . . . . . . . 440 205 . . 295 . . . . Wheels 870 | 38 692 140 . . . . . . . . . . . . . . . Hover . | . . . . . . . . . . . . . . . . . . Flight . | . . . . . . . . . . . . . . . . . . Fastest Speed 50 | 50 95 215 240 200 206 206 203 200 190 160 160 160 50 160 160 50 50 Average Speed 193 | 83 129 215 240 214 211 206 205 207 249 174 206 160 170 160 160 149 50 Slowest Speed 1750 | 100 200 215 240 240 250 245 206 280 280 540 280 200 1750 160 160 250 50 Overloaded Moves . | . . . . . . . . . . . . . . . . . . Propulsion Burnouts . | . . . . . . . . . . . . . . . . . . Robots Hopped . | . . . . . . . . . . . . . . . . . . Potential Cave-ins . | . . . . . . . . . . . . . . . . . . Cave-ins Triggered 1 | . . . 1 . . . . . . . . . . . . . . Exploration Rate (%) 51 | 3 98 30 91 79 93 60 65 34 45 18 59 38 93 2 94 15 17 Regions Visited 17 Branch Regions 1 Pre-discovered Areas 2 | . . . 1 1 . . . . . . . . . . . . . Known Exits Taken 8 | . . . 1 1 . 1 . 1 . 1 . 1 . 1 . 1 . Unknown Exits Taken 3 | 1 1 1 . . . . . . . . . . . . . . . Scrap Searched 1 | . . 1 . . . . . . . . . . . . . . . Spaces Dug 13 | . . . 2 4 . 3 . . . 2 . 2 . . . . . Terrain Destroyed 461 | . 24 7 101 24 1 36 5 49 1 7 38 65 73 . 1 29 . Melee 11 | . . . 2 4 . 3 . . . 2 . . . . . . . Projectile 49 | . . . . . 1 . 5 4 1 5 4 12 10 . 1 6 . AOE 397 | . 24 7 99 20 . 33 . 45 . . 33 52 62 . . 22 . Terrain Rammed . | . . . . . . . . . . . . . . . . . . Walls Destroyed . | . . . . . . . . . . . . . . . . . . Machines Disabled . | . . . . . . . . . . . . . . . . . . Actions | -11 -10 -10 -9 -8 -8 -8 -8 -7 -7 -6 -6 -5 -5 -4 -4 -3 -3 --------- Run | Yrd Mat Min Mat Mat Gar Mat Gar Fac Gar Fac Gar Fac Gar Fac Gar Res Gar Total 14440 | 73 1031 169 1560 1400 1026 919 667 1383 561 604 731 1296 1705 58 703 485 69 Wait 662 | . 250 10 19 52 17 66 23 67 6 15 10 28 36 10 29 24 . Move 11676 | 52 691 139 1346 1209 856 738 536 1105 456 529 574 1118 1310 42 579 327 69 Hop . | . . . . . . . . . . . . . . . . . . Pick Up 209 | 7 20 6 24 22 7 10 10 18 17 5 14 12 23 . 10 4 . Fast Attach 144 | 6 2 . 4 8 5 6 3 11 7 6 17 14 37 . 5 13 . Attach 112 | 1 3 1 11 7 4 4 8 17 7 3 6 6 18 3 2 11 . Detach 8 | . . . . . . . . 1 . 1 . . 4 . 1 1 . Swap 171 | . 4 1 26 13 20 14 4 20 12 4 5 22 11 . 6 9 . Drop 227 | . 12 . 31 23 10 11 6 16 16 10 22 25 18 3 10 14 . Fire 972 | 7 49 12 93 62 81 64 53 123 29 29 51 71 121 . 46 81 . Melee 58 | . . . 5 4 18 5 2 . 6 2 16 . . . . . . Ram . | . . . . . . . . . . . . . . . . . . Kick . | . . . . . . . . . . . . . . . . . . Crush 9 | . . . 1 . . 1 . 3 . . . . 3 . . 1 . Escape Stasis 43 | . . . . . 8 . 12 2 5 . 16 . . . . . . Rewire 140 | . . . . . . . 1 . . . . . 124 . 15 . . Trap . | . . . . . . . . . . . . . . . . . . Miscellaneous 9 | . . . . . . . 9 . . . . . . . . . . Route ------- -11/Scrapyard -10/Materials (discovered 6 exits: *Mat x3 / [*Min x2] / Sub) -10/Mines -9/Materials (discovered 4 exits: *Mat x3 / *Min) -8/Materials (discovered 4 exits: *Fac x3 / Gar) -8/Garrison (discovered 4 exits: *Mat x4) -8/Materials (discovered 4 exits: *Fac x3 / Gar) -8/Garrison (discovered 3 exits: *Fac x3) -7/Factory (discovered 3 exits: *Fac / Sto / Gar) -7/Garrison (discovered 3 exits: *Fac x3) -6/Factory -6/Garrison -5/Factory (discovered 3 exits: Upp x2 / Gar) -5/Garrison (discovered 3 exits: *Fac x3) -4/Factory -4/Garrison (discovered 3 exits: *Res x3) -3/Research -3/Garrison History --------- Turn | Location | Event 7 | -11/Scrapyard | Discovered new exit (range 15) 83 | -11/Scrapyard | Entered Materials 301 | -10/Materials | Build established: Mutant 330 | -10/Materials | Discovered new exit (range 10) 496 | -10/Materials | Discovered new exit (range 6) 601 | -10/Materials | Discovered new exit (range 11) 601 | -10/Materials | Discovered new exit (range 19) 986 | -10/Materials | Discovered new exit (range 16) 1105 | -10/Materials | Identified exit to Subcaves 1105 | -10/Materials | Learned location of 1 exit from Materials 1294 | -10/Materials | Learned 2 Storage zone layouts 1318 | -10/Materials | Learned location of 3 exits from Materials 1408 | -10/Materials | Entered Mines 1539 | -10/Mines | Found DCF Scrap (15 items) 1565 | -10/Mines | Learned Materials trap positions 1694 | -10/Mines | Discovered new exit (range 9) 1740 | -10/Mines | Assembled infested the area 1761 | -10/Mines | Entered Materials 1761 | -9/Materials | Evolved 2 slots: Propulsion x1, Weapon x1 1762 | -9/Materials | Identified exit to Materials 1762 | -9/Materials | Identified exit to Mines 1763 | -9/Materials | Loaded intel: 29 trap records 2426 | -9/Materials | Build established: Gunner 3353 | -9/Materials | Build established: Scavenger-Gunner 3748 | -9/Materials | Destroyed 8 combat bots 3972 | -9/Materials | Build established: Scavenger-Tank 4145 | -9/Materials | Loaded intel: 17 interactive machine locations 4190 | -9/Materials | Learned Materials trap positions 4227 | -9/Materials | Learned Recycling recycling unit intel 4268 | -9/Materials | Loaded intel: 2 recycling unit locations 4292 | -9/Materials | Learned location of 2 exits from Materials 4406 | -9/Materials | Crushed by falling debris 4406 | -9/Materials | Core integrity fell below 50% 4710 | -9/Materials | Build established: Tank 4961 | -9/Materials | First assault squad dispatched 5218 | -9/Materials | Lost 3 parts (1u2w) 5380 | -9/Materials | Entered another Materials area 5380 | -8/Materials | Evolved 2 slots: Utility x2 5381 | -8/Materials | Identified exit to Factory 5382 | -8/Materials | Loaded intel: 6 trap records 6884 | -8/Materials | Identified exit to Garrison 7503 | -8/Materials | Central database locked down 7587 | -8/Materials | Discovered exit to Factory (range 3) 7681 | -8/Materials | Learned 2 Lower Caves zone layouts 7787 | -8/Materials | Learned Factory emergency access door positions 7824 | -8/Materials | Learned 4 Factory zone layouts 7851 | -8/Materials | Learned Factory terminal intel 7890 | -8/Materials | Learned Storage emergency access door positions 7919 | -8/Materials | Learned Storage trap positions 7958 | -8/Materials | Build established: Scavenger-Tank 7959 | -8/Materials | Learned location of Recycling (-7) 8009 | -8/Materials | Learned location of 1 exit from Lower Caves 8302 | -8/Materials | Entered Garrison 8302 | -8/Garrison | Accompanied by 1 ally 8476 | -8/Garrison | Triggered checkpoint 8842 | -8/Garrison | Triggered checkpoint 9185 | -8/Garrison | Discovered new exit (range 14) 9274 | -8/Garrison | Triggered checkpoint 9299 | -8/Garrison | Build established: Scientist-Tank 9301 | -8/Garrison | Discovered new exit (range 5) 9382 | -8/Garrison | Triggered checkpoint 9744 | -8/Garrison | Triggered checkpoint 9795 | -8/Garrison | Discovered new exit (range 9) 9844 | -8/Garrison | Triggered checkpoint 10135 | -8/Garrison | Discovered new exit (range 10) 10198 | -8/Garrison | Triggered checkpoint 10311 | -8/Garrison | Installed Relay Interface Framework 10356 | -8/Garrison | Garrison Relay disabled 10469 | -8/Garrison | Entered Materials 10469 | -8/Materials | Accompanied by 3 allies 10636 | -8/Materials | Build established: Tank 10654 | -8/Materials | Lost 3 allies 11102 | -8/Materials | Repaired Arm. Treads+ 11269 | -8/Materials | First assault squad dispatched 11371 | -8/Materials | Core integrity fell below 50% 11437 | -8/Materials | Repaired Arm. Treads+ 11943 | -8/Materials | Garrison activated, responded to threat 12305 | -8/Materials | Identified exit to Garrison 12305 | -8/Materials | Entered Garrison 12377 | -8/Garrison | Triggered checkpoint 12413 | -8/Garrison | Build established: Scientist-Gunner 12688 | -8/Garrison | Triggered checkpoint 12765 | -8/Garrison | Core integrity fell below 20% 12927 | -8/Garrison | Expanded RIF knowledge: Signal Jamming 13003 | -8/Garrison | Discovered exit to Factory (range 3) 13125 | -8/Garrison | Triggered checkpoint 13222 | -8/Garrison | Discovered exit to Factory (range 12) 13253 | -8/Garrison | Build established: Gunner 13310 | -8/Garrison | Rescued a captive Derelict 13390 | -8/Garrison | Triggered checkpoint 13460 | -8/Garrison | Discovered exit to Factory (range 8) 13475 | -8/Garrison | Triggered checkpoint 13495 | -8/Garrison | Discovered exit to Factory (range 7) 13495 | -8/Garrison | Discovered exit to Factory (range 90) 13495 | -8/Garrison | Discovered exit to Factory (range 40) 13531 | -8/Garrison | Garrison Relay disabled 13578 | -8/Garrison | Garrison Relay disabled 13671 | -8/Garrison | Entered Factory 13671 | -7/Factory | Accompanied by 1 ally 13671 | -7/Factory | Evolved 2 slots: Propulsion x1, Utility x1 13672 | -7/Factory | Identified exit to Storage 13675 | -7/Factory | Loaded intel: 26 terminal locations 13858 | -7/Factory | Identified exit to DSF 13864 | -7/Factory | Build established: Bothacker-Mutant 14071 | -7/Factory | First assault squad dispatched 14429 | -7/Factory | Build established: Bothacker-Gunner 14495 | -7/Factory | Repaired Arm. Treads+ 14995 | -7/Factory | Central database locked down 15071 | -7/Factory | Discovered new exit (range 5) 15433 | -7/Factory | Lost 4 parts (2n2u) 15691 | -7/Factory | Build established: Bothacker-Tank 16266 | -7/Factory | Lost 9 parts (4n2u3w) 16293 | -7/Factory | Core integrity fell below 50% 16341 | -7/Factory | Lost 5 parts (1p2n1u1w) 16482 | -7/Factory | Build established: Bothacker-Mutant 16483 | -7/Factory | Identified exit to Garrison 16483 | -7/Factory | Entered Garrison 16533 | -7/Garrison | Triggered checkpoint 16611 | -7/Garrison | Expanded RIF knowledge: Watcher Feeds 16667 | -7/Garrison | Garrison Relay disabled 17027 | -7/Garrison | Triggered checkpoint 17128 | -7/Garrison | Discovered new exit (range 12) 17139 | -7/Garrison | Discovered new exit (range 13) 17139 | -7/Garrison | Discovered new exit (range 34) 17139 | -7/Garrison | Discovered new exit (range 71) 17213 | -7/Garrison | Triggered checkpoint 17321 | -7/Garrison | Build established: Bothacker-Gunner 17665 | -7/Garrison | Triggered checkpoint 17716 | -7/Garrison | Expanded RIF knowledge: Structural Interface 17788 | -7/Garrison | Entered Factory 17788 | -6/Factory | Evolved 2 slots: Utility x1, Weapon x1 17816 | -6/Factory | Identified exit to Garrison 18045 | -6/Factory | Build established: Botlord-Gunner 18840 | -6/Factory | Entered Garrison 18840 | -6/Garrison | Accompanied by 1 ally 18882 | -6/Garrison | Triggered checkpoint 18941 | -6/Garrison | Lost 4 parts (1p1u2w) 18976 | -6/Garrison | Lost 3 allies 19043 | -6/Garrison | Expanded RIF knowledge: Coupler Efficiency 19098 | -6/Garrison | Garrison Relay disabled 19355 | -6/Garrison | Triggered checkpoint 19355 | -6/Garrison | Triggered checkpoint 19358 | -6/Garrison | Triggered checkpoint 19398 | -6/Garrison | Triggered checkpoint 19421 | -6/Garrison | Destroyed 7 combat bots 19642 | -6/Garrison | Triggered checkpoint 19688 | -6/Garrison | Expanded RIF knowledge: Command Fork 19751 | -6/Garrison | Garrison Relay disabled 19870 | -6/Garrison | Triggered checkpoint 20011 | -6/Garrison | Lost 3 parts (2n1u) 20063 | -6/Garrison | Garrison Relay disabled 20291 | -6/Garrison | Discovered new exit (range 10) 20318 | -6/Garrison | Entered Factory 20318 | -5/Factory | Evolved 2 slots: Propulsion x1, Utility x1 20373 | -5/Factory | Watched by a mysterious "MATRIX" hacker. 20532 | -5/Factory | Build established: Botlord-Tank 20675 | -5/Factory | Found Launcher Loader 20926 | -5/Factory | P-70 Sage assimilated allied Sentinel 6a 21411 | -5/Factory | Spotted B-75 Beast 21753 | -5/Factory | Identified exit to Upper Caves 22024 | -5/Factory | System corruption reached 10% 22026 | -5/Factory | Found Prototype Launcher 22026 | -5/Factory | Identified Mni. Smartbomb Launcher 22361 | -5/Factory | Cargo convoy interrupted 22381 | -5/Factory | Identified exit to Garrison 22381 | -5/Factory | Entered Garrison 22451 | -5/Garrison | Triggered checkpoint 22499 | -5/Garrison | Garrison Relay disabled 22560 | -5/Garrison | Spotted B-75 Beast 22584 | -5/Garrison | Triggered checkpoint 22600 | -5/Garrison | Destroyed B-75 Beast 22612 | -5/Garrison | Triggered checkpoint 22624 | -5/Garrison | Triggered checkpoint 22652 | -5/Garrison | Triggered checkpoint 22700 | -5/Garrison | Lost 9 parts (1p2n3u3w) 22746 | -5/Garrison | Core integrity fell below 50% 22755 | -5/Garrison | Released all parts (6) 22776 | -5/Garrison | Lost 5 parts (1p2n2w) 23047 | -5/Garrison | Core integrity fell below 20% 23121 | -5/Garrison | Build established: Scavenger-Tank 23189 | -5/Garrison | Triggered checkpoint 23226 | -5/Garrison | Lost 3 parts (1p1u1w) 23236 | -5/Garrison | Discovered new exit (range 11) 23457 | -5/Garrison | Build established: Bothacker-Tank 23719 | -5/Garrison | Discovered new exit (range 13) 23888 | -5/Garrison | Garrison Relay disabled 24198 | -5/Garrison | Build established: Botlord-Tank 24265 | -5/Garrison | Triggered checkpoint 24269 | -5/Garrison | Discovered new exit (range 8) 24331 | -5/Garrison | Garrison Relay disabled 24404 | -5/Garrison | Found embedded Infiltrators 24411 | -5/Garrison | Garrison Relay disabled 24901 | -5/Garrison | Triggered checkpoint 24949 | -5/Garrison | Triggered checkpoint 24983 | -5/Garrison | Triggered checkpoint 25034 | -5/Garrison | Expanded RIF knowledge: Alert ID Control 25210 | -5/Garrison | Entered Factory 25210 | -4/Factory | Accompanied by 6 allies 25210 | -4/Factory | Evolved 2 slots: Power x1, Utility x1 25252 | -4/Factory | Identified exit to Garrison 25292 | -4/Factory | Entered Garrison 25292 | -4/Garrison | Accompanied by 6 allies 25475 | -4/Garrison | Expanded RIF knowledge: Autoassimilate 25485 | -4/Garrison | Triggered checkpoint 25486 | -4/Garrison | Triggered checkpoint 25524 | -4/Garrison | Triggered checkpoint 25531 | -4/Garrison | Garrison Relay disabled 25545 | -4/Garrison | Lost 8 allies 25656 | -4/Garrison | Spotted B-86 Titan 25677 | -4/Garrison | Destroyed B-86 Titan 25677 | -4/Garrison | Triggered checkpoint 25785 | -4/Garrison | Garrison Relay disabled 25800 | -4/Garrison | Triggered checkpoint 25848 | -4/Garrison | Discovered new exit (range 15) 25972 | -4/Garrison | Triggered checkpoint 25999 | -4/Garrison | Garrison Relay disabled 26026 | -4/Garrison | Discovered new exit (range 8) 26076 | -4/Garrison | Triggered checkpoint 26152 | -4/Garrison | Discovered new exit (range 5) 26188 | -4/Garrison | Triggered checkpoint 26243 | -4/Garrison | Garrison Relay disabled 26332 | -4/Garrison | Learned Research security intel 26394 | -4/Garrison | Entered Research 26394 | -3/Research | Accompanied by 2 allies 26394 | -3/Research | Evolved 2 slots: Propulsion x1, Utility x1 26644 | -3/Research | First assault squad dispatched 26821 | -3/Research | P-80 Master assimilated allied Veteran 8b 26881 | -3/Research | Cargo convoy interrupted 26890 | -3/Research | Garrison activated, responded to threat 26893 | -3/Research | System corruption reached 10% 26946 | -3/Research | Destroyed 7 combat bots 26999 | -3/Research | Core integrity fell below 50% 27002 | -3/Research | Lost 18 parts (3p6n5u4w) 27105 | -3/Research | Core integrity fell below 20% 27121 | -3/Research | Released all parts (3) 27125 | -3/Research | Identified exit to Garrison 27125 | -3/Research | Entered Garrison 27150 | -3/Garrison | Lost 4 parts (1p1n2w) 27157 | -3/Garrison | Triggered checkpoint 27160 | -3/Garrison | Destroyed by S-43 Plague with Heavy Machine Gun Last Messages --------------- 27119_ Penetrated by Slug. 27121_ O0EOCOXZRQON<1YPRLS|A7MS> Watcher Feeds: All visual feed links lost. 27121_ Released Relay Coupler [Hunter]. 27121_ Released Lyr. Heavy Armor Plating. 27122_ Y-72 Warden IFF system glitched. 27125_ Connecting with Garrison Access... >>Unlock Access door unlocked. 27125_ EXIT=UNLOCKED: GARRISON LOCATION=GARRISON GOAL=ESCAPE 27127_ RIF reveals location of phase wall. 27142_ 7HR DJCLJIX&NCUNFJ>AC49 V, 27142_ RIF reveals location of phase wall. 27157_ Beams of light sweep through the air. An alarm sounds. 27160_ System corrupted: Matter fused (-7). Map ----- +----------------------------------------------------+ | ????????????????????????????????????????" ??? | | ????????????????????????????????????????" ?? | | ????????????????????????????????###?????# #? | | ??????????????????????????????###T####### ## | | ??????????????????????????????# ? | | ??????????????????????????????# ? ??? | | ??????????????????????????????# ???? ????? | | ??????????????????????????????# #??????#+#?????? | | ??????????????????????????????# #??????# #?????? | | ??????????????????????######### ######## #?????? | | ??????????????????????#"# + + + #?????? | | ??????????????????????#" " + ##### ####?????? | | ??????????????????????#" s#### #???# #????????? | | ??????????????????????#" #??# #???# #????????? | | ??????????????????????#"# #??# #???# #????????? | | ??????????????????????#?#ss#??# #???# #????????? | | ????????????????????????#ss#??# #???# #????????? | | ????????????????????????# #??# #???# #????????? | | ??????????????????????### #??# #???# #????????? | | ??????????????????????# #??# #???# #????????? | | ??????????????????????# #??# #???# #????????? | | ??????????????????????# #??# #???# #????????? | | ??????????????????????###g #??# #???# #????????? | | ????????????????????????# #### ##### #????????? | | ????????????????#"T"##### + #????????? | | ????????????????#" @ #######????????? | | ????????????????############### #??????????????? | | ??????????????????????????????# #??????????????? | | ??????????????????????????????# #??????????????? | | ??????????????????????????????# #??????????????? | | ??????????????????????????????# #??????????????? | | ??????????????????????????????# #??????????????? | | ??????????????????????????????# #??????????????? | | ??????????????????????????????# #??????????????? | | ??????????????????????????????# #??????????????? | | ??????????????????????????????# #??????????????? | | ??????????????????????????????# #??????????????? | | ????????????????????????????### #??????????????? | | ????????????????????????????# #??????????????? | | ????????????????????????????# #??????????????? | | ????????????????????????????# #??????????????? | | ????????????????????????????#######??????????????? | | ?????????????????????????????????????????????????? | | ?????????????????????????????????????????????????? | | ?????????????????????????????????????????????????? | | ?????????????????????????????????????????????????? | | ?????????????????????????????????????????????????? | | ?????????????????????????????????????????????????? | | ?????????????????????????????????????????????????? | | ?????????????????????????????????????????????????? | +----------------------------------------------------+ Best States ------------- Heat Dissipation 90 Energy Generation 32 Energy Capacity 525 Matter Stores 300 Matter Capacity 300 Sight Range 16 Terrain Scan Density 10 Armor Coverage 825 Resistance: KI 20 Resistance: TH 25 Resistance: EM 15 Weapon Cycling 25 Evasion (%) 55 Targeting Accuracy 8 Core Analysis 6 Recoil Reduction 6 Relay Coupler Types 5 Relay Coupler Value 112 Item Schematics ----------------- Arm. Medium Treads | -7/Factory | Hacked Robot Schematics ------------------ M-13 Machinist | -9/Materials | Hacked Fabricated ------------ Nothing Repaired ---------- Arm. Treads | 19% | -8/Materials Arm. Treads | 23% | -8/Materials Arm. Treads | 6% | -7/Factory Studied --------- Imp. Treads | -8/Materials | Hacked Hvy. Assault Rifle | -8/Materials | Hacked Arm. Treads | -8/Materials | Hacked Minigun | -8/Materials | Hacked Gauss Rifle | -6/Factory | Hacked Imp. Medium Treads | -6/Factory | Hacked KE Penetrator | -5/Factory | Hacked Imp. Heavy Treads | -5/Factory | Hacked Imp. Remote Datajack | -5/Factory | Hacked Alien Tech Used ----------------- None Achievements -------------- Hackerman Satisfying Challenges ------------ None Game ------ Seed TractorThiefOptics Manual? 0 Play Time 04:09:44 Cumulative 159.2 hours Start 2026.02.15 @ 21:57:58 End 2026.02.16 @ 02:15:09 Sessions 1 Manual Loads 0 Difficulty Rogue Special Mode None Game No. 124 Rogue 124 Adventurer 0 Explorer 0 Win Type - Total 2 Types 2/0/0/0/0/0/0/0/0/0 Lore% 66 Gallery% 62 Achievement% 46 Wizard Run 0 Options --------- Layout 1 ASCII 0 Keyboard 0 Movement Numpad Keybinds 0 Fullscreen 1 Font 18/SmallcapsGlow Map View 50x40 Zoom Use 0% Tactical HUD 1 Map Filters NONE Filters NONE Steam 1 RUN: 0c67c234-50b8-400c-aa27-df5f997b59bd